bitfinex-derivatives/quotes_SOLF0:USTF0_20240911
["timestamp","ask_amount","ask_price","bid_price","bid_amount"]
[1726077663769,18.04,133.24,133.12,18.04]
[1726077663970,18.04,133.24,133.12,21.82632029]
[1726077664172,3.7528,133.23,133.17,3.7542]
[1726077664863,6.4193,133.22,133.17,3.7542]
[1726077665267,2.6663,133.22,133.15,18.04]
[1726077665777,2.6663,133.22,133.18,3.7539]
[1726077665967,2.6663,133.22,133.17,18.04]
[1726077666271,1.4158,133.26,133.17,18.04]
[1726077666472,6.4763,133.26,133.2,3.7534]
[1726077666671,10.17402505,133.26,133.2,3.7534]
[1726077667073,3.7521,133.25,133.2,3.7534]
[1726077667278,6.42202505,133.26,133.17,18.04]
[1726077667463,6.52413482,133.26,133.18,18.04]
[1726077667888,6.52413482,133.26,133.17,18.04]
[1726077668472,3.7521,133.25,133.2,3.7534]
[1726077668674,2.7243,133.26,133.17,18.04]
[1726077669475,6.4762,133.26,133.17,18.04]
[1726077669678,2.7243,133.26,133.17,18.04]
[1726077669868,2.7243,133.26,133.15,18.04]
[1726077670073,21.7925,133.24,133.15,18.04]
[1726077670271,2.7243,133.26,133.16,18.04]
[1726077670272,20.7643,133.26,133.16,18.04]
[1726077670470,19.3485,133.26,133.16,18.04]
[1726077670670,20.7158,133.26,133.17,3.72241709]
[1726077670868,18.04,133.24,133.15,18.04]
[1726077671173,3.7529,133.23,133.17,3.7542]
[1726077671373,18.04,133.24,133.15,21.70199677]
[1726077671883,21.7925,133.24,133.18,3.7541]
[1726077672184,3.7525,133.24,133.18,3.7541]
[1726077672582,20.7158,133.26,133.17,3.7543]
[1726077672583,3.7527,133.23,133.17,3.7543]
[1726077673582,20.7158,133.26,133.17,3.7543]
[1726077673782,18.04,133.24,133.15,18.04]
[1726077674290,3.7531,133.22,133.15,18.04]
[1726077674478,18.04,133.24,133.15,18.04]
[1726077674788,21.7925,133.24,133.18,3.7539]
[1726077675783,21.7925,133.24,133.19,3.7537]
[1726077676083,3.7525,133.24,133.19,3.7537]
[1726077676680,20.7158,133.26,133.15,18.04]
[1726077676981,18.04,133.24,133.14,3.76154287]
[1726077677187,3.7531,133.22,133.18,3.7541]
[1726077677379,2.6758,133.26,133.16,18.02]
[1726077677987,3.7523,133.25,133.19,3.7538]
[1726077678290,3.7523,133.25,133.16,18.02]
[1726077678591,2.6758,133.26,133.18,18.02]
[1726077678982,3.7522,133.25,133.2,3.7534]
[1726077679189,2.6758,133.26,133.18,18.02]
[1726077679387,2.6758,133.26,133.16,21.86637559]
[1726077679693,3.7526,133.24,133.19,3.7536]
[1726077680193,3.7526,133.24,133.2,3.7535]
[1726077680394,3.7522,133.25,133.2,3.7535]
[1726077680985,3.7522,133.25,133.21,3.7531]
[1726077681286,6.4277,133.26,133.17,18.01]
[1726077681488,18.01,133.32,133.23,18.01]
[1726077681788,4.147,133.32,133.25,18.01]
[1726077682099,4.147,133.32,133.27,3.7515]
[1726077682485,3.68599568,133.37,133.29,3.7508]
[1726077682682,1.4197,133.33,133.25,18.01]
[1726077683096,1.4197,133.33,133.29,3.7508]
[1726077683995,1.4197,133.33,133.25,18.01]
[1726077684882,5.1696,133.33,133.25,18.01]
[1726077685286,5.1696,133.33,133.28,3.7513]
[1726077685504,5.1696,133.33,133.25,18.01]
[1726077685505,3.7503,133.32,133.25,18.01]
[1726077685688,3.7503,133.32,133.27,3.7514]
[1726077686189,3.7505,133.31,133.23,21.6707612]
[1726077686382,3.7505,133.31,133.26,3.7517]
[1726077686587,3.7505,133.31,133.23,18.01]
[1726077686984,1.4197,133.33,133.25,18.01]
[1726077687496,5.1697,133.33,133.28,3.7512]
[1726077687901,1.4197,133.33,133.25,21.68460249]
[1726077688088,1.4197,133.33,133.27,18.01]
[1726077688801,1.4197,133.33,133.3,3.7505]
[1726077689997,1.4197,133.33,133.27,18.01]
[1726077690696,1.4197,133.33,133.27,10.01]
[1726077690994,19.4297,133.33,133.18,125.3354551]
[1726077691196,19.4297,133.33,133.22,18.01]
[1726077691389,23.1796,133.33,133.28,3.7511]
[1726077691594,5.1696,133.33,133.28,3.7511]
[1726077691992,5.1696,133.33,133.29,3.7509]
[1726077692193,1.4197,133.33,133.23,18.01]
[1726077692500,1.4197,133.33,133.28,3.7511]
[1726077692702,5.1696,133.33,133.28,3.7511]
[1726077692889,5.1696,133.33,133.24,3.65866466]
[1726077692890,1.4197,133.33,133.24,3.65866466]
[1726077693298,1.4197,133.33,133.25,3.77203965]
[1726077693493,1.4197,133.33,133.23,18.01]
[1726077693692,1.4197,133.33,133.29,3.7508]
[1726077693898,1.4197,133.33,133.23,18.01]
[1726077693899,1.4197,133.33,133.25,18.01]
[1726077694398,1.4197,133.33,133.27,18.01]
[1726077694603,1.38,133.34,133.27,18.01]
[1726077694800,1.38,133.34,133.28,3.71239228]
[1726077696794,3.7491,133.36,133.28,3.71239228]
[1726077697001,3.81330513,133.37,133.3,18.01]
[1726077697403,3.81330513,133.37,133.32,3.7501]
[1726077697703,19.447,133.38,133.32,3.7501]
[1726077697900,3.73481027,133.37,133.32,3.7501]
[1726077698296,7.48371027,133.37,133.33,3.7498]
[1726077698702,3.73481027,133.37,133.33,3.7498]
[1726077699198,19.447,133.38,133.27,18.01]
[1726077699504,3.81619748,133.37,133.29,18.01]
[1726077699706,3.81619748,133.37,133.29,21.80509487]
[1726077700104,7.56509748,133.37,133.32,3.75]
[1726077701400,5.1856,133.38,133.29,21.80509487]
[1726077701600,5.21146936,133.38,133.29,21.80509487]
[1726077702001,8.95996936,133.38,133.33,3.7496]
[1726077702402,8.95996936,133.38,133.29,21.80509487]
[1726077702907,3.7488,133.37,133.29,21.80509487]
[1726077703300,3.7488,133.37,133.33,3.7498]
[1726077703499,882.52992948,133.5,133.31,18.01]
[1726077703703,2.8247,133.42,133.36,3.749]
[1726077703899,3.73059326,133.41,133.36,3.749]
[1726077704110,7.47839326,133.41,133.36,3.749]
[1726077704409,7.47839326,133.41,133.37,3.7487]
[1726077705403,7.47839326,133.41,133.38,3.7484]
[1726077706205,4.229,133.42,133.33,18.01]
[1726077706607,7.9765,133.42,133.39,3.7481]
[1726077707008,4.229,133.42,133.33,18.01]
[1726077707214,4.229,133.42,133.4,3.7477]
[1726077707837,4.229,133.42,133.33,18.01]
[1726077708214,4.229,133.42,133.39,3.748]
[1726077708619,4.229,133.42,133.34,3.66489202]
[1726077708800,4.229,133.42,133.4,3.7477]
[1726077709005,4.229,133.42,133.34,3.66489202]
[1726077709414,4.229,133.42,133.39,3.748]
[1726077710012,4.229,133.42,133.37,3.7486]
[1726077710210,4.229,133.42,133.33,18.01]
[1726077710703,3.7478,133.41,133.33,18.01]
[1726077712514,3.748,133.4,133.33,18.01]
[1726077713314,3.748,133.4,133.35,3.7493]
[1726077715119,3.748,133.4,133.36,3.749]
[1726077717311,4.229,133.42,133.33,18.01]
[1726077717512,18.01,133.38,133.29,18.01]
[1726077717719,3.77221027,133.37,133.29,18.01]
[1726077718028,3.7489,133.37,133.33,3.7497]
[1726077718614,3.7489,133.37,133.32,3.75]
[1726077718819,3.7486,133.38,133.3,21.74997237]
[1726077719224,3.72872658,133.39,133.33,3.7497]
[1726077719520,3.7488,133.37,133.33,3.7497]
[1726077720218,18.01,133.34,133.2,7.5067]
[1726077720421,18.01,133.34,133.23,18.01]
[1726077720727,3.7503,133.32,133.26,3.7518]
[1726077720916,18.01,133.34,133.23,18.01]
[1726077721223,3.7508,133.3,133.25,3.752]
[1726077721425,3.7508,133.3,133.23,18.01]
[1726077721924,3.7508,133.3,133.25,3.7521]
[1726077722121,18.01,133.34,133.23,18.01]
[1726077722917,21.81447011,133.34,133.23,18.01]
[1726077723119,21.81447011,133.34,133.26,3.7517]
[1726077723326,3.7504,133.32,133.23,18.01]
[1726077723531,3.7504,133.32,133.27,3.7514]
[1726077724329,3.7504,133.32,133.28,3.7513]
[1726077725726,2.7638,133.36,133.3,18.01]
[1726077727227,1.4066,133.39,133.31,18.01]
[1726077727627,5.1548,133.39,133.34,3.7494]
[1726077728127,19.4166,133.39,133.27,1.3265]
[1726077728329,18.01,133.37,133.27,23.09184388]
[1726077728532,18.01,133.37,133.27,19.3365]
[1726077728923,2.7773,133.38,133.27,5.10021934]
[1726077729121,18.01,133.35,133.24,18.01]
[1726077729737,1.3426,133.34,133.24,18.01]
[1726077729932,3.7503,133.32,133.26,3.7516]
[1726077730333,1.3481,133.32,133.29,3.7509]
[1726077730647,18.01,133.37,133.27,18.01]
[1726077730831,3.74324808,133.36,133.27,21.67184866]
[1726077731134,7.49244808,133.36,133.3,3.7505]
[1726077731531,19.3581,133.37,133.27,21.67184866]
[1726077731731,1.3481,133.37,133.29,18.01]
[1726077732237,1.3481,133.37,133.29,21.72136352]
[1726077733237,1.3481,133.37,133.32,3.7501]
[1726077733426,1.3481,133.37,133.29,21.72136352]
[1726077734139,1.3481,133.37,133.32,3.7499]
[1726077734331,1.3481,133.37,133.29,21.72136352]
[1726077734929,1.4171,133.38,133.32,18.01]
[1726077735534,1.4171,133.38,133.35,3.7493]
[1726077735934,1.4171,133.38,133.32,18.01]
[1726077736537,2.8138,133.38,133.3,18.01]
[1726077736738,2.8138,133.38,133.28,19.3824]
[1726077736937,3.7489,133.37,133.31,3.7504]
[1726077737541,2.8138,133.38,133.3,18.01]
[1726077738041,2.8138,133.38,133.32,18.01]
[1726077738341,2.8138,133.38,133.33,3.7498]
[1726077738843,6.5623,133.38,133.33,3.7498]
[1726077739043,2.8138,133.38,133.33,3.7498]
[1726077739240,2.8138,133.38,133.32,21.76]
[1726077739643,2.8138,133.38,133.28,23.13230618]
[1726077739840,2.8138,133.38,133.31,3.7503]
[1726077740341,18.01,133.37,133.28,19.3824]
[1726077740547,18.01,133.37,133.28,1.3724]
[1726077740845,18.01,133.35,133.27,3.7513]
[1726077741043,5.0411,133.34,133.27,3.7513]
[1726077741350,3.7501,133.33,133.27,3.7513]
[1726077741834,5.0411,133.34,133.27,3.7513]
[1726077742032,1.3166,133.34,133.26,18.01]
[1726077742234,20.8238,133.38,133.28,18.01]
[1726077742733,20.8238,133.38,133.32,3.7501]
[1726077742937,20.8238,133.38,133.28,18.01]
[1726077743139,3.7492,133.36,133.28,18.01]
[1726077743338,3.7492,133.36,133.3,3.7504]
[1726077743543,3.7492,133.36,133.28,18.01]
[1726077744536,2.8138,133.38,133.3,18.01]
[1726077744943,6.5624,133.38,133.3,18.01]
[1726077745146,2.8138,133.38,133.3,18.01]
[1726077745441,2.8138,133.38,133.34,3.7494]
[1726077745837,2.8138,133.38,133.32,18.01]
[1726077746049,18.01,133.44,133.34,18.01]
[1726077746344,4.2325,133.45,133.35,28.79]
[1726077746545,3.7473,133.43,133.36,3.7489]
[1726077746745,3.77024381,133.42,133.33,28.79]
[1726077746942,28.79,133.44,133.33,28.79]
[1726077747142,3.7478,133.41,133.35,3.7492]
[1726077747741,3.7478,133.41,133.33,28.79]
[1726077747742,3.7479,133.4,133.34,3.7495]
[1726077748043,3.7479,133.4,133.33,28.79]
[1726077749239,3.7479,133.4,133.34,3.7494]
[1726077749644,2.7923,133.39,133.3,28.79]
[1726077750542,2.7923,133.39,133.33,3.7496]
[1726077750744,6.5405,133.39,133.33,3.7496]
[1726077751048,2.7923,133.39,133.3,28.79]
[1726077751248,2.7923,133.39,133.31,3.66722493]
[1726077751440,2.7923,133.39,133.31,5.07362493]
[1726077751646,2.7923,133.39,133.34,3.7494]
[1726077751947,2.7923,133.39,133.31,5.07362493]
[1726077752539,2.7923,133.39,133.31,1.4064]
[1726077753550,3.7485,133.38,133.32,3.75]
[1726077755444,3.7491,133.36,133.31,3.7503]
[1726077755951,3.7488,133.37,133.32,3.75]
[1726077756146,2.7923,133.39,133.28,28.79]
[1726077757251,3.749,133.37,133.31,3.7502]
[1726077757449,3.749,133.37,133.28,28.79]
[1726077758146,2.7923,133.39,133.25,1.3278]
[1726077758352,2.7923,133.39,133.26,28.79]
[1726077758353,28.79,133.37,133.26,28.79]
[1726077758542,3.7497,133.34,133.26,28.79]
[1726077758849,3.66422515,133.34,133.29,3.7508]
[1726077759046,3.7497,133.34,133.29,3.7508]
[1726077759248,7.59278673,133.34,133.26,28.79]
[1726077759448,3.7497,133.34,133.26,28.79]
[1726077759651,3.7496,133.34,133.26,28.79]
[1726077759954,7.44757262,133.34,133.26,28.79]
[1726077760160,7.44757262,133.34,133.28,3.7512]
[1726077760447,3.7499,133.33,133.28,3.7512]
[1726077761051,2.7923,133.39,133.28,28.79]
[1726077761743,3.7495,133.35,133.3,3.7504]
[1726077762954,3.7496,133.34,133.29,3.7508]
[1726077763156,2.7923,133.39,133.29,3.7508]
[1726077763357,2.7923,133.39,133.34,3.7494]
[1726077763653,2.7923,133.39,133.31,28.79]
[1726077764047,2.7923,133.39,133.31,32.50333558]
[1726077764251,2.7923,133.39,133.33,28.79]
[1726077764443,28.79,133.44,133.33,28.79]
[1726077764444,3.73884132,133.43,133.33,28.79]
[1726077764644,3.73884132,133.43,133.37,3.7485]
[1726077764645,7.48604132,133.43,133.37,3.7485]
[1726077765154,7.48604132,133.43,133.34,3.6983322]
[1726077765454,7.48604132,133.43,133.33,28.79]
[1726077765455,32.9317,133.44,133.33,28.79]
[1726077767160,3.7478,133.41,133.36,3.7489]
[1726077767358,3.82431573,133.42,133.36,3.7489]
[1726077767553,3.7484,133.39,133.34,3.7494]
[1726077767755,3.68636747,133.39,133.34,3.7494]
[1726077767960,28.79,133.42,133.31,28.79]
[1726077768176,28.79,133.4,133.29,28.79]
[1726077768361,18.01,133.36,133.27,1.346]
[1726077768663,3.7496,133.34,133.27,1.346]
[1726077768966,7.86985678,133.35,133.26,18.01]
[1726077769263,4.155,133.35,133.31,3.7504]
[1726077769462,4.155,133.35,133.28,18.01]
[1726077770058,4.155,133.35,133.31,3.7503]
[1726077770258,4.155,133.35,133.28,18.01]
[1726077770763,2.7514,133.35,133.28,18.01]
[1726077771159,2.7514,133.35,133.3,3.7507]
[1726077772551,2.7514,133.35,133.31,3.7504]
[1726077773163,2.7514,133.35,133.31,3.7502]
[1726077773663,2.7514,133.35,133.31,3.7504]
[1726077774764,6.5008,133.35,133.31,3.7504]
[1726077775357,2.7514,133.35,133.28,18.01]
[1726077775861,2.7514,133.35,133.31,3.7503]
[1726077776364,6.42131747,133.35,133.28,18.01]
[1726077776659,6.5008,133.35,133.3,3.7504]
[1726077777065,24.44585408,133.35,133.29,3.7509]
[1726077777266,24.44585408,133.35,133.27,1.4248]
[1726077777569,3.7502,133.32,133.27,1.4248]
[1726077777765,3.7502,133.32,133.28,3.751]
[1726077777957,3.7503,133.32,133.24,21.68470189]
[1726077779370,3.7503,133.32,133.27,3.7514]
[1726077780862,3.7503,133.32,133.24,21.68470189]
[1726077780863,3.75,133.33,133.28,3.7513]
[1726077781269,24.44585408,133.35,133.26,18.01]
[1726077781464,3.7496,133.34,133.29,3.7507]
[1726077781664,24.44585408,133.35,133.26,18.01]
[1726077782069,18.01,133.33,133.24,18.01]
[1726077782271,18.01,133.31,133.22,19.3092]
[1726077782771,3.7508,133.3,133.25,3.7519]
[1726077783360,3.7508,133.3,133.26,3.7518]
[1726077783774,18.01,133.33,133.24,18.01]
[1726077784161,1.3075,133.34,133.24,18.01]
[1726077784366,3.75,133.33,133.24,18.01]
[1726077784677,24.44585408,133.35,133.26,18.01]
[1726077785170,2.7514,133.35,133.26,18.01]
[1726077785564,2.7514,133.35,133.27,1.3426]
[1726077786074,6.5009,133.35,133.3,3.7506]
[1726077787065,2.7514,133.35,133.27,1.3426]
[1726077787372,6.45948012,133.35,133.27,1.3426]
[1726077787678,18.01,133.34,133.24,18.01]
[1726077788177,3.7504,133.32,133.27,3.7514]
[1726077788667,18.01,133.34,133.24,21.75746792]
[1726077789262,21.7597,133.34,133.29,3.751]
[1726077789463,2.7514,133.35,133.26,18.01]
[1726077789662,18.01,133.4,133.28,18.01]
[1726077789878,20.8282,133.4,133.29,1.3416]
[1726077790269,3.7486,133.38,133.33,3.7498]
[1726077790572,20.8282,133.4,133.3,18.01]
[1726077790772,20.8282,133.4,133.32,3.75]
[1726077790773,3.7489,133.37,133.32,3.75]
[1726077791474,3.7485,133.38,133.33,3.7498]
[1726077791875,3.7484,133.39,133.29,1.3416]
[1726077792075,20.8282,133.4,133.29,1.3416]
[1726077792675,3.7487,133.38,133.33,3.7498]
[1726077793066,3.7483,133.39,133.34,3.7494]
[1726077793972,3.7485,133.38,133.34,3.7494]
[1726077794979,3.7485,133.38,133.35,3.7493]
[1726077795171,24.5763,133.4,133.31,3.81908853]
[1726077795369,20.8282,133.4,133.31,3.81908853]
[1726077795670,24.5763,133.4,133.36,3.7488]
[1726077795870,20.8282,133.4,133.36,3.7488]
[1726077796075,24.5761,133.4,133.36,3.7488]
[1726077796277,2.8182,133.4,133.37,3.7487]
[1726077796472,2.8182,133.4,133.32,18.01]
[1726077796674,21.7587,133.38,133.29,19.3516]
[1726077796874,18.01,133.38,133.29,19.3516]
[1726077797283,3.749,133.37,133.33,3.7498]
[1726077797480,3.749,133.37,133.29,19.3516]
[1726077797684,18.01,133.38,133.29,19.3516]
[1726077797870,21.7586,133.38,133.29,19.3516]
[1726077798076,18.01,133.38,133.29,19.3516]
[1726077798477,18.01,133.38,133.32,3.75]
[1726077799881,3.7491,133.36,133.32,3.75]
[1726077800084,3.7491,133.36,133.31,3.7503]
[1726077800379,3.7491,133.36,133.29,1.3416]
[1726077800980,3.7491,133.36,133.31,3.7504]
[1726077801183,3.7488,133.37,133.29,1.3416]
[1726077801374,3.7488,133.37,133.29,19.3516]
[1726077801679,3.7488,133.37,133.32,3.75]
[1726077801881,3.749,133.36,133.29,19.3516]
[1726077802076,3.749,133.36,133.31,3.7503]
[1726077802982,18.01,133.38,133.29,19.3516]
[1726077802983,3.7494,133.35,133.29,19.3516]
[1726077803186,18.01,133.38,133.29,19.3516]
[1726077803585,20.8282,133.4,133.29,1.3416]
[1726077803885,18.01,133.35,133.29,1.3416]
[1726077804084,3.7496,133.34,133.29,5.0925]
[1726077804287,18.01,133.35,133.27,18.01]
[1726077804676,3.7497,133.34,133.29,3.7508]
[1726077804881,21.779875,133.35,133.29,3.7508]
[1726077805283,2.8182,133.4,133.3,18.01]
[1726077805478,20.8282,133.4,133.31,3.77025]
[1726077805673,20.8282,133.4,133.31,5.12015]
[1726077805884,20.8282,133.4,133.35,3.7493]
[1726077806382,24.5763,133.4,133.35,3.7493]
[1726077806583,24.5763,133.4,133.31,5.12015]
[1726077806584,20.8282,133.4,133.31,5.12015]
[1726077806783,20.8282,133.4,133.32,18.01]
[1726077807283,24.5763,133.4,133.32,18.01]
[1726077807484,6.5663,133.4,133.32,18.01]
[1726077807699,2.8182,133.4,133.32,18.01]
[1726077808188,6.5661,133.4,133.37,3.7486]
[1726077808389,2.8182,133.4,133.32,18.01]
[1726077808596,1.3936,133.4,133.32,18.01]
[1726077808882,3.7475,133.42,133.38,3.7483]
[1726077809080,3.83463712,133.43,133.33,18.01]
[1726077809282,3.7481,133.4,133.36,3.7488]
[1726077810178,3.7481,133.4,133.37,3.7486]
[1726077811787,18.01,133.42,133.36,3.749]
[1726077811788,3.7482,133.39,133.36,3.749]
[1726077812684,18.01,133.4,133.32,18.01]
[1726077812879,18.01,133.4,133.31,5.12015]
[1726077813079,2.7005,133.39,133.31,5.12015]
[1726077813384,18.01,133.38,133.31,1.3499]
[1726077814378,18.01,133.38,133.27,18.01]
[1726077814778,3.7496,133.34,133.3,3.7504]
[1726077814994,18.01,133.38,133.27,18.01]
[1726077815987,3.7489,133.37,133.32,3.7499]
[1726077816685,3.7485,133.38,133.33,3.7497]
[1726077816896,2.7005,133.39,133.31,21.7399385]
[1726077817189,2.7005,133.39,133.31,18.01]
[1726077817389,2.7005,133.39,133.25,1.3905]
[1726077817390,2.7005,133.39,133.28,18.01]
[1726077817992,3.7491,133.36,133.32,3.75]
[1726077818186,2.7005,133.39,133.32,3.75]
[1726077818678,3.749,133.37,133.32,3.75]
[1726077819390,3.749,133.36,133.32,3.75]
[1726077819887,2.7005,133.39,133.3,18.01]
[1726077820082,2.7005,133.39,133.31,18.01]
[1726077820083,3.7486,133.38,133.31,18.01]
[1726077820278,2.7005,133.39,133.31,21.76243707]
[1726077820690,6.4488,133.39,133.35,3.7491]
[1726077820882,6.4488,133.39,133.31,21.76243707]
[1726077821996,2.7005,133.39,133.31,21.76243707]
[1726077822195,2.7005,133.39,133.32,1.4204]
[1726077822692,18.79915405,133.42,133.32,1.4204]
[1726077822895,18.79915405,133.42,133.37,3.7487]
[1726077823186,3.7478,133.41,133.37,3.7487]
[1726077823394,3.7478,133.41,133.33,18.01]
[1726077823395,21.72569259,133.43,133.33,18.01]
[1726077823583,3.7475,133.42,133.35,18.01]
[1726077823990,3.7475,133.42,133.37,3.7487]
[1726077825587,3.7476,133.41,133.37,3.7487]
[1726077828610,4.04,133.4,133.37,3.7487]
[1726077828796,4.04,133.4,133.39,3.7482]
[1726077828995,4.04,133.4,133.35,18.01]
[1726077829390,4.04,133.4,133.37,3.7485]
[1726077831498,7.788,133.4,133.36,3.749]
[1726077831692,4.04,133.4,133.36,3.749]
[1726077832299,1.1,133.37,133.35,18.01]
[1726077833296,1.1,133.37,133.36,3.749]
[1726077833699,1.1,133.37,133.35,18.01]
[1726077833700,4.04,133.4,133.35,18.01]
[1726077833891,2.623,133.46,133.39,18.01]
[1726077834088,2.623,133.46,133.41,18.01]
[1726077834490,2.623,133.46,133.4,3.78082268]
[1726077834700,2.623,133.46,133.4,18.01]
[1726077834892,6.3692,133.46,133.41,3.7474]
[1726077837499,2.623,133.46,133.42,3.7472]
[1726077838398,2.623,133.46,133.42,18.01]
[1726077839895,2.623,133.46,133.42,21.7572]
[1726077840102,2.623,133.46,133.42,18.01]
[1726077840700,2.623,133.46,133.42,21.7572]
[1726077841001,6.3694,133.46,133.42,18.01]
[1726077841399,2.623,133.46,133.42,18.01]
[1726077841701,2.623,133.46,133.4,3.68807614]
[1726077841702,2.623,133.46,133.4,18.01]
[1726077841893,2.623,133.46,133.4,21.7577]
[1726077842294,2.623,133.46,133.32,1.4204]
[1726077842498,2.623,133.46,133.36,18.01]
[1726077842801,2.623,133.46,133.37,18.01]
[1726077842996,2.623,133.46,133.38,3.7457843]
[1726077843301,3.7469,133.44,133.38,3.7457843]
[1726077843496,3.7469,133.44,133.39,3.7479]
[1726077843697,3.7473,133.43,133.37,18.01]
[1726077843898,2.623,133.46,133.37,18.01]
[1726077844205,3.747,133.44,133.39,3.748]
[1726077844399,2.623,133.46,133.39,3.748]
[1726077845004,3.747,133.44,133.39,3.748]
[1726077845504,2.623,133.46,133.37,18.01]
[1726077846796,18.01,133.45,133.35,18.01]
[1726077847505,3.7476,133.42,133.35,18.01]
[1726077848400,3.7472,133.43,133.38,3.7483]
[1726077848599,1.3682,133.44,133.38,3.7483]
[1726077848808,2.06,133.43,133.38,3.7483]
[1726077848995,3.7474,133.42,133.38,3.7483]
[1726077849407,2.06,133.43,133.39,3.7481]
[1726077849708,5.8072,133.43,133.39,3.7481]
[1726077850008,2.06,133.43,133.37,18.01]
[1726077850306,2.06,133.43,133.38,3.81090991]
[1726077850505,2.06,133.43,133.39,3.748]
[1726077851006,2.06,133.43,133.37,18.01]
[1726077851307,2.06,133.43,133.39,3.748]
[1726077852005,2.06,133.43,133.39,18.01]
[1726077852606,2.06,133.43,133.4,3.7477]
[1726077852910,2.06,133.43,133.37,18.01]
[1726077853608,5.8073,133.43,133.37,18.01]
[1726077853910,2.06,133.43,133.32,1.4204]
[1726077854207,2.06,133.43,133.38,3.7483]
[1726077854601,5.8072,133.43,133.38,3.7483]
[1726077854810,2.06,133.43,133.39,3.7481]
[1726077855497,2.06,133.43,133.38,21.7583]
[1726077855701,5.8072,133.43,133.38,21.7583]
[1726077856496,2.06,133.43,133.39,3.7482]
[1726077856808,2.06,133.43,133.38,18.01]
[1726077857012,5.8072,133.43,133.38,21.7583]
[1726077857205,5.8072,133.43,133.38,18.01]
[1726077857206,2.06,133.43,133.38,18.01]
[1726077858107,5.8072,133.43,133.38,21.7583]
[1726077858306,2.06,133.43,133.38,18.01]
[1726077858810,2.06,133.43,133.39,3.748]
[1726077859701,3.7473,133.43,133.38,21.7583]
[1726077860305,3.7473,133.43,133.38,21.7582]
[1726077860511,2.623,133.46,133.38,21.76712143]
[1726077860512,3.7467,133.45,133.38,21.76712143]
[1726077860713,2.623,133.46,133.38,21.76712143]
[1726077860913,2.623,133.46,133.39,3.7482]
[1726077861603,2.623,133.46,133.36,18.01]
[1726077862001,3.7473,133.43,133.36,18.01]
[1726077863008,3.7473,133.43,133.38,3.7484]
[1726077863205,3.7475,133.42,133.36,18.01]
[1726077863707,3.7471,133.43,133.38,3.7483]
[1726077864113,3.7471,133.43,133.33,18.01]
[1726077864316,3.7471,133.43,133.4,11.51]
[1726077865217,3.7468,133.44,133.4,11.51]
[1726077865812,3.7468,133.44,133.4,15.2577]
[1726077867116,3.7471,133.43,133.4,11.51]
[1726077868822,14.133,133.46,133.4,11.51]
[1726077869520,14.133,133.46,133.39,3.7481]
[1726077869716,11.51,133.44,133.39,3.7481]
[1726077870317,3.7472,133.43,133.4,15.2578]
[1726077873023,14.133,133.46,133.41,11.51]
[1726077873024,2.623,133.46,133.41,11.51]
[1726077873721,2.623,133.46,133.42,3.7472]